fUSD/lending_fUSD_20241013
["ID","MTS","AMOUNT","RATE_DAILY","PERIOD"]
[340220739,1728853840269,-504.62222304,0.00010997,2]
[340220740,1728853840279,-498.15200415,0.00010997,2]
[340220741,1728853840290,-500.0,0.00010997,2]
[340220742,1728853840301,-500.0,0.00010997,2]
[340220743,1728853840311,-500.0,0.00010997,2]
[340220744,1728853840322,-500.0,0.00010997,2]
[340220745,1728853840332,-500.0,0.00010997,2]
[340220746,1728853840343,-518.59155542,0.00010997,2]
[340220747,1728853840354,-516.76584346,0.00010997,2]
[340220748,1728853840364,-504.67987841,0.00010997,2]
[340220749,1728853840375,-500.0,0.00010997,2]
[340220750,1728853840386,-516.07177551,0.00010997,2]
[340220751,1728853840397,-507.45198557,0.00010997,2]
[340220752,1728853840407,-520.4336875,0.00010997,2]
[340220753,1728853840418,-500.0,0.00010997,2]
[340220754,1728853840428,-500.0,0.00010997,2]
[340220755,1728853840439,-519.90540871,0.00010997,2]
[340220756,1728853840450,-500.0,0.00010997,2]
[340220757,1728853840460,-500.0,0.00010997,2]
[340220758,1728853840471,-520.37144237,0.00010997,2]
[340220759,1728853840482,-631.51749783,0.00010997,2]
[340220760,1728853840493,-516.48343223,0.00010997,2]
[340220761,1728853840502,-533.509679,0.00010997,2]
[340220762,1728853840511,-508.40876948,0.00010997,2]
[340220763,1728853840520,-500.0,0.00010997,2]
[340220764,1728853840529,-524.43872645,0.00010997,2]
[340220765,1728853840538,-500.0,0.00010997,2]
[340220766,1728853840547,-500.0,0.00010997,2]
[340220767,1728853840557,-500.0,0.00010997,2]
[340220768,1728853840567,-500.0,0.00010997,2]
[340220769,1728853840711,-500.0,0.00010997,2]
[340220770,1728853840722,-528.95835168,0.00010997,2]
[340220771,1728853840731,-159.24326909,0.00010997,2]
[340220772,1728853840740,-534.62861431,0.00010997,2]
[340220773,1728853840749,-566.92362494,0.00010997,2]
[340220774,1728853840759,-500.0,0.00010997,2]
[340220775,1728853840767,-516.7697356,0.00010997,2]
[340220776,1728853840776,-552.89265556,0.00010997,2]
[340220777,1728853840786,-500.0,0.00010997,2]
[340220778,1728853840795,-524.64622423,0.00010997,2]
[340220779,1728853840805,-531.81145576,0.00010997,2]
[340220780,1728853840814,-513.03242889,0.00010997,2]
[340220781,1728853840827,-500.0,0.00010997,2]
[340220782,1728853840836,-508.8941991,0.00010997,2]
[340220783,1728853840846,-515.30225599,0.00010997,2]
[340220784,1728853840855,-500.0,0.00010997,2]
[340220785,1728853840864,-500.0,0.00010997,2]
[340220786,1728853840873,-548.78839924,0.00010997,2]
[340220787,1728853840882,-500.0,0.00010997,2]
[340220788,1728853840891,-500.0,0.00010997,2]
[340220789,1728853840901,-531.27096226,0.00010997,2]
[340220790,1728853840911,-500.0,0.00010997,2]
[340220791,1728853840922,-506.09503605,0.00010997,2]
[340220792,1728853840934,-500.0,0.00010997,2]
[340220793,1728853840946,-253.23489319,0.00010997,2]
[340220794,1728853840958,-514.55015279,0.00010997,2]
[340220795,1728853840967,-500.0,0.00010997,2]
[340220796,1728853840978,-526.33642698,0.00010997,2]
[340220797,1728853840987,-500.0,0.00010997,2]
[340220798,1728853840998,-500.0,0.00010997,2]
[340220799,1728853841008,-500.0,0.00010997,2]
[340220800,1728853841019,-500.0,0.00010997,2]
[340220801,1728853841029,-500.0,0.00010997,2]
[340220802,1728853841041,-500.0,0.00010997,2]
[340220803,1728853841051,-500.0,0.00010997,2]
[340220804,1728853841061,-500.0,0.00010997,2]
[340220805,1728853841071,-500.0,0.00010997,2]
[340220806,1728853841081,-527.97518657,0.00010997,2]
[340220807,1728853841090,-260.48519219,0.00010997,2]
[340220808,1728853841100,-500.0,0.00010997,2]
[340220809,1728853841111,-503.08872617,0.00010997,2]
[340220810,1728853841121,-500.0,0.00010997,2]
[340220811,1728853841131,-500.0,0.00010997,2]
[340220812,1728853841140,-500.0,0.00010997,2]
[340220813,1728853841150,-500.0,0.00010997,2]
[340220814,1728853841161,-500.0,0.00010997,2]
[340220815,1728853841171,-530.6830802,0.00010997,2]
[340220816,1728853841180,-541.64585471,0.00010997,2]
[340220817,1728853841189,-502.9094745,0.00010997,2]
[340220818,1728853841199,-509.13337393,0.00010997,2]
[340220819,1728853841208,-497.30738419,0.00010997,2]
[340220820,1728853841217,-521.27169881,0.00010997,2]
[340220821,1728853841226,-500.0,0.00010997,2]
[340220822,1728853841235,-500.0,0.00010997,2]
[340220823,1728853841244,-522.22539414,0.00010997,2]
[340220824,1728853841253,-515.31847627,0.00010997,2]
[340220825,1728853841263,-163.27027734,0.00010997,2]
[340220826,1728853841272,-532.18024761,0.00010997,2]
[340220827,1728853841281,-500.0,0.00010997,2]
[340220828,1728853841290,-234.89752121,0.00010997,2]
[340220829,1728853841299,-500.0,0.00010997,2]
[340220830,1728853841308,-505.96283179,0.00010997,2]
[340220831,1728853841317,-503.97034568,0.00010997,2]
[340220832,1728853841327,-500.0,0.00010997,2]
[340220833,1728853841336,-531.32232919,0.00010997,2]
[340220834,1728853841347,-500.0,0.00010997,2]
[340220835,1728853841356,-522.28583715,0.00010997,2]
[340220836,1728853841365,-521.02194838,0.00010997,2]
[340220837,1728853841374,-549.580772,0.00010997,2]
[340220838,1728853841384,-500.0,0.00010997,2]
[340220839,1728853841393,-313.38888919,0.00010997,2]
[340220840,1728853841402,-520.88071668,0.00010997,2]
[340220841,1728853841412,-500.0,0.00010997,2]
[340220842,1728853841421,-519.05104795,0.00010997,2]
[340220843,1728853841429,-500.0,0.00010997,2]
[340220844,1728853841439,-500.0,0.00010997,2]
[340220845,1728853841448,-328.02,0.00010997,2]
[340220846,1728853841459,-500.0,0.00010997,2]
[340220847,1728853841468,-500.0,0.00010997,2]
[340220848,1728853841477,-427.02283748,0.00010997,2]
[340220849,1728853841487,-551.14852779,0.00010997,2]
[340220850,1728853841497,-520.77686729,0.00010997,2]
[340220851,1728853841506,-514.57733357,0.00010997,2]
[340220852,1728853841515,-516.83448701,0.00010997,2]
[340220853,1728853841524,-500.0,0.00010997,2]
[340220854,1728853841533,-500.0,0.00010997,2]
[340220855,1728853841542,-507.7307176,0.00010997,2]
[340220856,1728853841553,-500.0,0.00010997,2]
[340220857,1728853841563,-500.0,0.00010997,2]
[340220858,1728853841573,-510.40436877,0.00010997,2]
[340220859,1728853841584,-500.0,0.00010997,2]
[340220860,1728853841594,-626.01666869,0.00010997,2]
[340220861,1728853841603,-500.0,0.00010997,2]
[340220862,1728853841612,-500.0,0.00010997,2]
[340220863,1728853841621,-500.0,0.00010997,2]
[340220864,1728853841630,-549.24755386,0.00010997,2]
[340220865,1728853841639,-500.0,0.00010997,2]
[340220866,1728853841648,-518.59651753,0.00010997,2]
[340220867,1728853841657,-503.26454011,0.00010997,2]
[340220868,1728853841666,-500.0,0.00010997,2]
[340220869,1728853841675,-508.64198619,0.00010997,2]
[340220870,1728853841684,-517.07838674,0.00010997,2]
[340220871,1728853841694,-594.53469292,0.00010998,2]
[340220872,1728853841703,-505.41380746,0.00010998,2]
[340220873,1728853841712,-500.0,0.00010998,2]
[340220874,1728853841721,-505.77522242,0.00010998,2]
[340220875,1728853841730,-504.63226411,0.00010998,2]
[340220876,1728853841739,-504.26245982,0.00010998,2]
[340220877,1728853841749,-505.61506596,0.00010998,2]
[340220878,1728853841758,-500.0,0.00010998,2]
[340220879,1728853841767,-506.21513802,0.00010998,2]
[340220880,1728853841776,-501.30497256,0.00010998,2]
[340220881,1728853841785,-504.46489516,0.00010998,2]
[340220882,1728853841794,-503.08591366,0.00010998,2]
[340220883,1728853841803,-502.17,0.00010998,2]
[340220884,1728853841812,-504.9124374,0.00010998,2]
[340220885,1728853841824,-503.81075367,0.00010998,2]
[340220886,1728853841833,-505.11459701,0.00010998,2]
[340220887,1728853841844,-501.9601695,0.00010998,2]
[340220888,1728853841853,-502.74927921,0.00010998,2]
[340220889,1728853841862,-501.37706227,0.00010998,2]
[340220890,1728853841871,-502.10229209,0.00010998,2]
[340220891,1728853841881,-504.2530533,0.00010998,2]
[340220892,1728853841891,-501.8077816,0.00010998,2]
[340220893,1728853841902,-520.47198163,0.00010998,2]
[340220894,1728853841911,-501.10947296,0.00010998,2]
[340220895,1728853841921,-519.05974799,0.00010998,2]
[340220896,1728853841930,-500.0,0.00010998,2]
[340220897,1728853841941,-253.62467278,0.00010998,2]
[340220898,1728853841953,-504.24222646,0.00010998,2]
[340220899,1728853841965,-529.57235896,0.00010998,2]
[340220900,1728853841974,-522.87569198,0.00010998,2]
[340220901,1728853841983,-504.68997445,0.00010998,2]
[340220902,1728853841993,-500.0,0.00010998,2]
[340220903,1728853842002,-254.29621942,0.00010998,2]
[340220904,1728853842011,-535.27597756,0.00010998,2]
[340220905,1728853842020,-507.51515447,0.00010998,2]
[340220906,1728853842029,-506.919768,0.00010998,2]
[340220907,1728853842039,-513.65402533,0.00010998,2]
[340220908,1728853842049,-518.91123411,0.00010998,2]
[340220909,1728853842059,-603.22765962,0.00010998,2]
[340220910,1728853842068,-529.34956398,0.00010998,2]
[340220911,1728853842078,-502.99008191,0.00010998,2]
[340220912,1728853842088,-523.97747118,0.00010998,2]
[340220913,1728853842097,-506.7084448,0.00010998,2]
[340220914,1728853842107,-626.09684591,0.00010998,2]
[340220915,1728853842117,-643.19869135,0.00010998,2]
[340220916,1728853842126,-501.53587948,0.00010998,2]
[340220917,1728853842135,-517.25920938,0.00010998,2]
[340220918,1728853842145,-522.66325817,0.00010998,2]
[340220919,1728853842155,-546.55632484,0.00010998,2]
[340220920,1728853842166,-626.33913338,0.00010998,2]
[340220921,1728853842177,-541.6106699,0.00010998,2]
[340220922,1728853842188,-538.42771636,0.00010998,2]
[340220923,1728853842198,-523.41878415,0.00010998,2]
[340220924,1728853842208,-500.0,0.00010998,2]
[340220925,1728853842218,-500.0,0.00010998,2]
[340220926,1728853842227,-537.56278681,0.00010998,2]
[340220927,1728853842236,-500.0,0.00010998,2]
[340220928,1728853842245,-521.26904572,0.00010998,2]
[340220929,1728853842253,-507.25845529,0.00010998,2]
[340220930,1728853842263,-548.18297608,0.00010998,2]
[340220931,1728853842272,-505.13820558,0.00010998,2]
[340220932,1728853842282,-508.37719858,0.00010998,2]
[340220933,1728853842291,-513.15072188,0.00010998,2]
[340220934,1728853842301,-520.8539435,0.00010998,2]
[340220935,1728853842311,-514.63203164,0.00010998,2]
[340220936,1728853842320,-583.02724203,0.00010998,2]
[340220937,1728853842330,-507.23313875,0.00010998,2]
[340220938,1728853842340,-506.10515011,0.00010998,2]
[340220939,1728853842350,-529.31562659,0.00010998,2]
[340220940,1728853842359,-507.12342196,0.00010998,2]
[340220941,1728853842369,-529.0070587,0.00010998,2]
[340220942,1728853842378,-503.18517294,0.00010998,2]
[340220943,1728853842387,-522.66924812,0.00010998,2]
[340220944,1728853842397,-500.0,0.00010998,2]
[340220945,1728853842406,-527.15762537,0.00010998,2]
[340220946,1728853842415,-525.78753929,0.00010998,2]
[340220947,1728853842424,-507.43600331,0.00010998,2]
[340220948,1728853842434,-524.37570599,0.00010998,2]
[340220949,1728853842443,-517.81415791,0.00010998,2]
[340220950,1728853842452,-506.29454848,0.00010998,2]
[340220951,1728853842461,-528.01753388,0.00010998,2]
[340220952,1728853842471,-524.5202275,0.00010998,2]
[340220953,1728853842480,-507.05341011,0.00010998,2]
[340220954,1728853842490,-545.84125915,0.00010998,2]
[340220955,1728853842499,-502.68245721,0.00010998,2]
[340220956,1728853842508,-523.2986652,0.00010998,2]
[340220957,1728853842517,-554.64139245,0.00010998,2]
[340220958,1728853842527,-559.79847959,0.00010998,2]
[340220959,1728853842536,-545.30064837,0.00010998,2]
[340220960,1728853842546,-509.95593178,0.00010998,2]
[340220961,1728853842555,-500.0,0.00010998,2]
[340220962,1728853842564,-500.0,0.00010998,2]
[340220963,1728853842573,-302.44698492,0.00010998,2]
[340220964,1728853842582,-500.0,0.00010998,2]
[340220965,1728853842593,-509.47644795,0.00010998,2]
[340220966,1728853842602,-175.20985438,0.00010998,2]
[340220967,1728853842611,-505.90616637,0.00010998,2]
[340220968,1728853842620,-500.0,0.00010998,2]
[340220969,1728853842629,-532.49745306,0.00010998,2]
[340220970,1728853842639,-520.28970304,0.00010998,2]
[340220971,1728853842648,-509.53006108,0.00010998,2]
[340220973,1728853842657,-515.35350403,0.00010998,2]
[340220974,1728853842666,-502.65156989,0.00010998,2]
[340220975,1728853842675,-521.13048336,0.00010998,2]
[340220976,1728853842684,-504.24329751,0.00010998,2]
[340220977,1728853842693,-500.0,0.00010998,2]
[340220978,1728853842702,-505.53156216,0.00010998,2]
[340220980,1728853842711,-521.77537956,0.00010998,2]
[340220981,1728853842721,-517.22887522,0.00010998,2]
[340220982,1728853842730,-502.96364796,0.00010998,2]
[340220983,1728853842739,-500.0,0.00010998,2]
[340220984,1728853842747,-514.94087745,0.00010998,2]
[340220985,1728853842756,-568.04377994,0.00010998,2]
[340220986,1728853842766,-519.84772683,0.00010998,2]
[340220987,1728853842775,-500.0,0.00010998,2]
[340220988,1728853842784,-537.64052578,0.00010998,2]
[340220989,1728853842794,-321.22752183,0.00010998,2]
[340220990,1728853842803,-516.57196423,0.00010998,2]
[340220991,1728853842812,-525.83685474,0.00010998,2]
[340220992,1728853842822,-507.84714921,0.00010998,2]
[340220993,1728853842831,-629.69691294,0.00010998,2]
[340220994,1728853842841,-515.16858087,0.00010998,2]
[340220995,1728853842850,-529.25603946,0.00010998,2]
[340220996,1728853842859,-519.58464813,0.00010998,2]
[340220997,1728853842868,-523.78923778,0.00010998,2]
[340220998,1728853842877,-500.0,0.00010998,2]
[340220999,1728853842886,-545.58437507,0.00010998,2]
[340221000,1728853842896,-556.89566395,0.00010998,2]
[340221001,1728853842905,-500.0,0.00010998,2]
[340221002,1728853842914,-500.0,0.00010998,2]
[340221003,1728853842924,-500.0,0.00010998,2]
[340221004,1728853842934,-516.05686079,0.00010998,2]
[340221005,1728853842943,-500.0,0.00010998,2]
[340221006,1728853842953,-526.99487102,0.00010998,2]
[340221007,1728853842966,-513.86498765,0.00010998,2]
[340221008,1728853842975,-537.05581444,0.00010998,2]
[340221009,1728853842985,-522.74224564,0.00010998,2]
[340221010,1728853842994,-500.0,0.00010998,2]
[340221011,1728853843004,-516.09322353,0.00010998,2]
[340221012,1728853843014,-500.0,0.00010998,2]
[340221013,1728853843023,-508.4730056,0.00010998,2]
[340221014,1728853843033,-500.0,0.00010998,2]
[340221015,1728853843042,-545.57072119,0.00010998,2]
[340221016,1728853843052,-500.0,0.00010998,2]
[340221017,1728853843062,-536.44822123,0.00010998,2]
[340221018,1728853843072,-627.22616486,0.00010998,2]
[340221019,1728853843081,-500.0,0.00010998,2]
[340221020,1728853843090,-518.32531887,0.00010998,2]
[340221021,1728853843100,-500.0,0.00010998,2]
[340221022,1728853843109,-500.0,0.00010998,2]
[340221023,1728853843119,-514.26852577,0.00010998,2]
[340221024,1728853843129,-500.0,0.00010998,2]
[340221025,1728853843138,-520.11572155,0.00010998,2]
[340221026,1728853843147,-531.22876474,0.00010998,2]
[340221027,1728853843157,-510.38212014,0.00010998,2]
[340221028,1728853843166,-500.0,0.00010998,2]
[340221029,1728853843176,-615.45348616,0.00010998,2]
[340221030,1728853843186,-520.58513492,0.00010998,2]
[340221031,1728853843196,-500.0,0.00010998,2]
[340221032,1728853843205,-500.0,0.00010998,2]
[340221033,1728853843214,-500.0,0.00010998,2]
[340221034,1728853843224,-509.32630568,0.00010998,2]
[340221035,1728853843234,-417.68022319,0.00010998,2]
[340221036,1728853843243,-500.0,0.00010998,2]
[340221037,1728853843253,-561.52463586,0.00010998,2]
[340221038,1728853843262,-500.0,0.00010998,2]
[340221039,1728853843272,-500.0,0.00010998,2]
[340221040,1728853843282,-529.88127427,0.00010998,2]
[340221041,1728853843291,-509.26235529,0.00010998,2]
[340221042,1728853843301,-500.0,0.00010998,2]
[340221043,1728853843310,-500.0,0.00010998,2]
[340221044,1728853843321,-1000.32,0.00010998,2]
[340221045,1728853843330,-1000.32,0.00010998,2]
[340221046,1728853843340,-500.0,0.00010998,2]
[340221047,1728853843350,-1000.32,0.00010998,2]
[340221048,1728853843359,-518.10205613,0.00010998,2]
[340221049,1728853843370,-500.0,0.00010998,2]
[340221050,1728853843380,-614.3446544,0.00010998,2]
[340221051,1728853843390,-500.0,0.00010998,2]
[340221052,1728853843400,-519.71211741,0.00010998,2]
[340221053,1728853843410,-500.0,0.00010998,2]
[340221054,1728853843420,-500.0,0.00010998,2]
[340221055,1728853843430,-419.58331557,0.00010998,2]
[340221056,1728853843440,-500.0,0.00010998,2]
[340221057,1728853843450,-500.0,0.00010998,2]
[340221058,1728853843460,-500.0,0.00010998,2]
[340221059,1728853843470,-525.53587108,0.00010998,2]
[340221060,1728853843480,-500.0,0.00010998,2]
[340221061,1728853843490,-508.82032247,0.00010998,2]
[340221062,1728853843500,-500.0,0.00010998,2]
[340221063,1728853843510,-530.51169322,0.00010998,2]
[340221064,1728853843520,-500.0,0.00010998,2]
[340221065,1728853843530,-509.68328235,0.00010998,2]
[340221066,1728853843540,-500.0,0.00010998,2]
[340221067,1728853843550,-500.0,0.00010998,2]
[340221068,1728853843559,-500.0,0.00010998,2]
[340221069,1728853843569,-500.0,0.00010998,2]
[340221070,1728853843578,-513.48738831,0.00010998,2]
[340221071,1728853843588,-500.0,0.00010998,2]
[340221072,1728853843597,-500.0,0.00010998,2]
[340221073,1728853843607,-500.0,0.00010998,2]
[340221074,1728853843616,-536.57514002,0.00010998,2]
[340221075,1728853843625,-500.0,0.00010998,2]
[340221076,1728853843635,-519.9939316,0.00010998,2]
[340221077,1728853843645,-500.0,0.00010998,2]
[340221078,1728853843654,-500.0,0.00010998,2]
[340221079,1728853843663,-518.41629043,0.00010998,2]
[340221080,1728853843673,-500.0,0.00010998,2]
[340221081,1728853843683,-528.8869811,0.00010998,2]
[340221082,1728853843692,-500.0,0.00010998,2]
[340221083,1728853843702,-500.0,0.00010998,2]
[340221084,1728853843712,-512.70300409,0.00010998,2]
[340221085,1728853843722,-504.93568735,0.00010998,2]
[340221086,1728853843732,-500.0,0.00010998,2]
[340221087,1728853843742,-500.0,0.00010998,2]
[340221088,1728853843752,-500.0,0.00010998,2]
[340221089,1728853843761,-500.0,0.00010998,2]
[340221090,1728853843771,-515.72851237,0.00010998,2]
[340221091,1728853843780,-500.0,0.00010998,2]
[340221092,1728853843790,-515.36964644,0.00010998,2]
[340221093,1728853843909,-500.0,0.00010998,2]
[340221094,1728853843921,-500.0,0.00010998,2]
[340221095,1728853843931,-500.0,0.00010998,2]
[340221096,1728853843940,-500.0,0.00010998,2]
[340221097,1728853843950,-500.0,0.00010998,2]
[340221098,1728853843959,-500.0,0.00010998,2]
[340221099,1728853843968,-500.0,0.00010998,2]
[340221100,1728853843977,-500.0,0.00010998,2]
[340221101,1728853843987,-500.0,0.00010998,2]
[340221102,1728853843996,-505.69797013,0.00010998,2]
[340221103,1728853844007,-500.0,0.00010998,2]
[340221104,1728853844017,-535.13884237,0.00010998,2]
[340221105,1728853844026,-500.0,0.00010998,2]
[340221106,1728853844036,-469.48369455,0.00010998,2]
[340221107,1728853844046,-500.0,0.00010998,2]
[340221108,1728853844055,-541.24533652,0.00010998,2]
[340221109,1728853844064,-500.0,0.00010998,2]
[340221110,1728853844073,-563.99004822,0.00010998,2]
[340221111,1728853844083,-500.0,0.00010998,2]
[340221112,1728853844094,-552.34902381,0.00010998,2]
[340221113,1728853844104,-500.0,0.00010998,2]
[340221114,1728853844114,-509.19950244,0.00010998,2]
[340221115,1728853844124,-500.0,0.00010998,2]
[340221116,1728853844135,-500.0,0.00010998,2]
[340221117,1728853844144,-520.57123704,0.00010998,2]
[340221118,1728853844154,-500.0,0.00010998,2]
[340221119,1728853844163,-573.83085368,0.00010998,2]
[340221120,1728853844175,-500.0,0.00010998,2]
[340221121,1728853844184,-527.84491738,0.00010998,2]
[340221122,1728853844194,-500.0,0.00010998,2]
[340221123,1728853844203,-510.11510238,0.00010998,2]
[340221124,1728853844213,-500.0,0.00010998,2]
[340221125,1728853844223,-587.54960864,0.00010998,2]
[340221126,1728853844233,-500.0,0.00010998,2]
[340221127,1728853844243,-519.0835482,0.00010998,2]
[340221128,1728853844253,-500.0,0.00010998,2]
[340221129,1728853844264,-521.70787992,0.00010998,2]
[340221130,1728853844274,-500.0,0.00010998,2]
[340221131,1728853844283,-500.0,0.00010998,2]
[340221132,1728853844293,-500.0,0.00010998,2]
[340221133,1728853844303,-519.80349788,0.00010998,2]
[340221134,1728853844313,-500.0,0.00010998,2]
[340221135,1728853844323,-521.50913756,0.00010998,2]
[340221136,1728853844332,-500.0,0.00010998,2]
[340221137,1728853844343,-519.89885239,0.00010998,2]
[340221138,1728853844354,-500.0,0.00010998,2]
[340221139,1728853844363,-520.14051073,0.00010998,2]
[340221140,1728853844373,-500.0,0.00010998,2]
[340221141,1728853844383,-500.0,0.00010998,2]
[340221142,1728853844393,-519.44167516,0.00010998,2]
[340221143,1728853844402,-542.72640926,0.00010998,2]
[340221144,1728853844412,-500.0,0.00010998,2]
[340221145,1728853844421,-504.80405904,0.00010998,2]
[340221146,1728853844431,-500.0,0.00010998,2]
[340221147,1728853844441,-544.04424869,0.00010998,2]
[340221148,1728853844451,-500.0,0.00010998,2]
[340221149,1728853844461,-500.0,0.00010998,2]
[340221150,1728853844471,-500.0,0.00010998,2]
[340221151,1728853844481,-500.0,0.00010998,2]
[340221152,1728853844490,-596.76,0.00010998,2]
[340221153,1728853844500,-505.18917977,0.00010998,2]
[340221154,1728853844510,-515.70852117,0.00010998,2]
[340221155,1728853844520,-500.0,0.00010998,2]
[340221156,1728853844531,-500.0,0.00010998,2]
[340221157,1728853844540,-500.0,0.00010998,2]
[340221158,1728853844550,-622.46836191,0.00010998,2]
[340221159,1728853844560,-508.36813007,0.00010998,2]
[340221160,1728853844569,-500.0,0.00010998,2]
[340221161,1728853844579,-542.080371,0.00010998,2]
[340221162,1728853844589,-500.0,0.00010998,2]
[340221163,1728853844598,-211.84908885,0.00010998,2]
[340221164,1728853844607,-500.0,0.00010998,2]
[340221165,1728853844617,-510.70271849,0.00010998,2]
[340221166,1728853844627,-500.0,0.00010998,2]
[340221167,1728853844636,-511.91009489,0.00010998,2]
[340221168,1728853844646,-621.56513943,0.00010998,2]
[340221169,1728853844656,-500.0,0.00010998,2]
[340221170,1728853844665,-510.48707068,0.00010998,2]
[340221171,1728853844675,-500.0,0.00010998,2]
[340221172,1728853844685,-535.11101889,0.00010998,2]
[340221173,1728853844693,-500.0,0.00010998,2]
[340221174,1728853844702,-378.11425804,0.00010998,2]
[340221175,1728853844711,-500.0,0.00010998,2]
[340221176,1728853844720,-507.08411068,0.00010998,2]
[340221177,1728853844730,-500.0,0.00010998,2]
[340221178,1728853844739,-500.0,0.00010998,2]
[340221179,1728853844748,-500.0,0.00010998,2]
[340221180,1728853844757,-500.0,0.00010998,2]
[340221181,1728853844767,-309.81109211,0.00010998,2]
[340221182,1728853844777,-500.0,0.00010998,2]
[340221183,1728853844786,-528.15926817,0.00010998,2]
[340221184,1728853844796,-500.0,0.00010998,2]
[340221185,1728853844806,-516.62871276,0.00010998,2]
[340221186,1728853844815,-500.0,0.00010998,2]
[340221187,1728853844824,-531.33861397,0.00010998,2]
[340221188,1728853844835,-500.0,0.00010998,2]
[340221189,1728853844846,-513.76416855,0.00010998,2]
[340221190,1728853844856,-500.0,0.00010998,2]
[340221191,1728853844865,-550.68806909,0.00010998,2]
[340221192,1728853844875,-500.0,0.00010998,2]
[340221193,1728853844885,-540.53803781,0.00010998,2]
[340221194,1728853844895,-513.5915347,0.00010998,2]
[340221195,1728853844905,-500.0,0.00010998,2]
[340221196,1728853844915,-521.31366539,0.00010998,2]
[340221197,1728853844925,-547.90207089,0.00010998,2]
[340221198,1728853844934,-500.0,0.00010998,2]
[340221199,1728853844945,-500.0,0.00010998,2]
[340221200,1728853844956,-500.0,0.00010998,2]
[340221201,1728853844965,-510.88580231,0.00010998,2]
[340221202,1728853844975,-500.0,0.00010998,2]
[340221203,1728853844984,-568.7104004,0.00010998,2]
[340221204,1728853844995,-500.0,0.00010998,2]
[340221205,1728853845004,-613.87608711,0.00010998,2]
[340221206,1728853845014,-500.0,0.00010998,2]
[340221207,1728853845023,-536.34087751,0.00010998,2]
[340221208,1728853845033,-500.0,0.00010998,2]
[340221209,1728853845043,-518.15327575,0.00010998,2]
[340221210,1728853845052,-500.0,0.00010998,2]
[340221211,1728853845062,-529.0242812,0.00010998,2]
[340221212,1728853845071,-500.0,0.00010998,2]
[340221213,1728853845081,-518.42845906,0.00010998,2]
[340221214,1728853845091,-477.11511822,0.00010998,2]
[340221215,1728853845101,-574.66228104,0.00010998,2]
[340221216,1728853845110,-500.0,0.00010998,2]
[340221217,1728853845119,-500.0,0.00010998,2]
[340221218,1728853845129,-520.90338988,0.00010998,2]
[340221219,1728853845139,-500.0,0.00010998,2]
[340221220,1728853845149,-545.37474531,0.00010998,2]
[340221221,1728853845158,-500.0,0.00010998,2]
[340221222,1728853845168,-500.0,0.00010998,2]
[340221223,1728853845178,-500.0,0.00010998,2]
[340221224,1728853845187,-500.0,0.00010998,2]
[340221225,1728853845197,-520.56782217,0.00010998,2]
[340221226,1728853845207,-150.0,0.00010998,2]
[340221227,1728853845216,-157.96521206,0.00010998,2]
[340221228,1728853845225,-500.0,0.00010998,2]
[340221229,1728853845235,-500.0,0.00010998,2]
[340221230,1728853845245,-500.0,0.00010998,2]
[340221231,1728853845255,-500.0,0.00010998,2]
[340221232,1728853845266,-527.31535792,0.00010998,2]
[340221233,1728853845276,-534.52035292,0.00010998,2]
[340221234,1728853845285,-500.0,0.00010998,2]
[340221235,1728853845295,-645.22622434,0.00010998,2]
[340221236,1728853845305,-500.0,0.00010998,2]
[340221237,1728853845314,-524.61942145,0.00010998,2]
[340221238,1728853845324,-500.0,0.00010998,2]
[340221239,1728853845333,-543.76678341,0.00010998,2]
[340221240,1728853845343,-500.0,0.00010998,2]